fUSD/lending_fUSD_20240125
["ID","MTS","AMOUNT","RATE_DAILY","PERIOD"]
[312738846,1706190769395,-2856.0,0.00054808,120]
[312738847,1706190769404,-2786.0,0.00054808,120]
[312738848,1706190769414,-500.0,0.00054848,120]
[312738849,1706190769423,-708.0,0.000549,30]
[312738850,1706190769433,-1000.0,0.000549,30]
[312738851,1706190769443,-500.0,0.00054931,120]
[312738852,1706190769452,-500.0,0.00054931,120]
[312738853,1706190769462,-2058.77,0.00054931,5]
[312738854,1706190769471,-150.0,0.00054971,60]
[312738855,1706190769481,-200.0,0.00054987,54]
[312738856,1706190769489,-200.0,0.00054987,44]
[312738857,1706190769499,-200.0,0.00054987,34]
[312738858,1706190769509,-198.4,0.0005499,120]
[312738859,1706190769519,-491.0,0.0005499,2]
[312738860,1706190769528,-300.0,0.00055,56]
[312738861,1706190769538,-164.0,0.00055,120]
[312738862,1706190769547,-168.23786519,0.00055,4]
[312738863,1706190769556,-217.67419098,0.00055,4]
[312738864,1706190769566,-568.74189417,0.00055,4]
[312738865,1706190769575,-165.0,0.00055,120]
[312738866,1706190769585,-169.0,0.00055,120]
[312738867,1706190769594,-500.0,0.00055023,120]
[312738868,1706190769603,-200.0,0.00055041,120]
[312738869,1706190769613,-500.0,0.00055068,120]
[312738870,1706190769622,-500.0,0.00055068,120]
[312738871,1706190769632,-251.58070642,0.00055068,120]
[312738872,1706190769641,-1740.58,0.00055068,2]
[312738873,1706190769650,-694.02,0.00055068,120]
[312738874,1706190769659,-439.75439836,0.00055068,120]
[312738875,1706190769669,-500.0,0.00055068,120]
[312738876,1706190769792,-500.0,0.00055068,120]
[312738877,1706190769802,-500.0,0.00055068,120]
[312738878,1706190769812,-500.0,0.00055068,120]
[312738879,1706190769821,-899.54,0.00055068,120]
[312738880,1706190769831,-942.26,0.00055068,120]
[312738881,1706190769840,-274.93,0.00055068,120]
[312738882,1706190769851,-656.21,0.00055068,2]
[312738883,1706190769861,-542.69,0.00055068,7]
[312738884,1706190769871,-1037.12,0.00055068,120]
[312738885,1706190769885,-538.3384388,0.00055068,120]
[312738886,1706190769894,-1302.92,0.00055068,7]
[312738887,1706190769904,-420.71872455,0.00055068,120]
[312738888,1706190769916,-500.0,0.00055068,120]
[312738889,1706190769926,-1106.47,0.00055068,120]
[312738890,1706190769935,-553.31,0.00055068,120]
[312738891,1706190769945,-500.0,0.00055068,120]
[312738892,1706190769955,-582.46,0.00055068,120]
[312738893,1706190769964,-658.74,0.00055068,120]
[312738894,1706190769974,-903.12,0.00055068,120]
[312738895,1706190769985,-919.78,0.00055068,120]
[312738896,1706190769995,-791.89,0.00055068,120]
[312738897,1706190770005,-500.0,0.00055068,120]
[312738898,1706190770016,-500.0,0.00055068,120]
[312738899,1706190770032,-500.0,0.00055068,120]
[312738900,1706190770042,-518.45,0.00055068,120]
[312738901,1706190770052,-276.16919886,0.00055068,120]
[312738902,1706190770063,-192.2,0.00055068,120]
[312738903,1706190770073,-521.96,0.00055068,120]
[312738904,1706190770083,-713.07,0.00055068,120]
[312738905,1706190770093,-1043.27,0.00055068,120]
[312738906,1706190770104,-1210.44,0.00055068,120]
[312738907,1706190770115,-500.0,0.00055068,120]
[312738908,1706190770127,-549.8,0.00055068,20]
[312738909,1706190770138,-747.16,0.00055068,120]
[312738910,1706190770149,-1473.87,0.00055068,120]
[312738911,1706190770159,-1598.0,0.00055068,120]
[312738912,1706190770169,-2954.82,0.00055068,120]
[312738913,1706190770179,-2335.03,0.00055068,120]
[312738914,1706190770189,-516.66,0.00055068,120]
[312738915,1706190770199,-562.17,0.00055068,120]
[312738916,1706190770209,-938.7,0.00055068,2]
[312738917,1706190770219,-633.94410948,0.00055068,120]
[312738918,1706190770229,-1411.73880333,0.00055119,16]
[312738919,1706190770238,-500.0,0.00055149,120]
[312738920,1706190770248,-154.47221725,0.00055153,120]
[312738921,1706190770258,-160.36,0.00055205,120]
[312738922,1706190770267,-489.77323395,0.00055205,120]
[312738923,1706190770277,-2058.77,0.00055205,5]
[312738924,1706190770287,-500.0,0.00055251,120]
[312738925,1706190770297,-488.0,0.0005529,2]
[312738926,1706190770306,-161.71374287,0.00055342,120]
[312738927,1706190770316,-412.98456489,0.00055342,120]
[312738928,1706190770325,-1740.58,0.00055342,2]
[312738929,1706190770335,-694.02,0.00055342,120]
[312738930,1706190770344,-500.0,0.00055342,120]
[312738931,1706190770354,-500.0,0.00055342,120]
[312738932,1706190770363,-500.0,0.00055342,120]
[312738933,1706190770374,-645.66563143,0.00055342,120]
[312738934,1706190770386,-899.54,0.00055342,120]
[312738935,1706190770396,-942.26,0.00055342,120]
[312738936,1706190770405,-656.21,0.00055342,2]
[312738937,1706190770414,-542.69,0.00055342,7]
[312738938,1706190770424,-1037.12,0.00055342,120]
[312738939,1706190770433,-1302.92,0.00055342,7]
[312738940,1706190770442,-299.90994605,0.00055342,120]
[312738941,1706190770452,-1106.47,0.00055342,120]
[312738942,1706190770462,-553.31,0.00055342,120]
[312738943,1706190770473,-500.0,0.00055342,120]
[312738944,1706190770482,-582.46,0.00055342,120]
[312738945,1706190770492,-658.74,0.00055342,120]
[312738946,1706190770501,-903.12,0.00055342,120]
[312738947,1706190770511,-919.78,0.00055342,120]
[312738948,1706190770520,-791.89,0.00055342,120]
[312738949,1706190770530,-500.0,0.00055342,120]
[312738950,1706190770539,-562.9384315,0.00055342,120]
[312738951,1706190770549,-350.03202035,0.00055342,120]
[312738952,1706190770559,-518.45,0.00055342,120]
[312738953,1706190770572,-192.2,0.00055342,120]
[312738954,1706190770591,-521.96,0.00055342,120]
[312738955,1706190770607,-713.07,0.00055342,120]
[312738956,1706190770628,-1043.27,0.00055342,120]
[312738957,1706190770645,-1210.44,0.00055342,120]
[312738958,1706190770662,-500.0,0.00055342,120]
[312738959,1706190770680,-549.8,0.00055342,20]
[312738960,1706190770696,-747.16,0.00055342,120]
[312738961,1706190770716,-1473.87,0.00055342,120]
[312738962,1706190770733,-1598.0,0.00055342,120]
[312738963,1706190770752,-2954.82,0.00055342,120]
[312738964,1706190770773,-2335.03,0.00055342,120]
[312738965,1706190770789,-516.66,0.00055342,120]
[312738966,1706190770805,-562.17,0.00055342,120]
[312738967,1706190770821,-938.7,0.00055342,2]
[312738968,1706190770836,-200.0,0.00055356,120]
[312738969,1706190770853,-150.0,0.00055375,120]
[312738970,1706190770868,-500.0,0.00055438,120]
[312738971,1706190770883,-500.0,0.00055438,120]
[312738972,1706190770900,-200.0,0.00055438,120]
[312738973,1706190770915,-500.0,0.0005545,120]
[312738974,1706190770930,-200.0,0.00055452,120]
[312738975,1706190770945,-2058.77,0.00055479,5]
[312738976,1706190770959,-500.0,0.00055479,120]
[312738977,1706190770974,-169.0,0.000555,120]
[312738978,1706190770989,-486.0,0.0005559,2]
[312738979,1706190771004,-152.0,0.000556,120]
[312738980,1706190771018,-150.0,0.00055615,60]
[312738981,1706190771034,-1740.59783305,0.00055616,2]
[312738982,1706190771049,-694.07952252,0.00055616,120]
[312738983,1706190771064,-462.78739743,0.00055616,120]
[312738984,1706190771082,-407.5825521,0.00055616,120]
[312738985,1706190771096,-353.10117657,0.00055616,120]
[312738986,1706190771112,-899.56625847,0.00055616,120]
[312738987,1706190771127,-942.4740019,0.00055616,120]
[312738988,1706190771142,-656.3329525,0.00055616,2]
[312738989,1706190771157,-542.75333677,0.00055616,7]
[312738990,1706190771172,-1037.13140198,0.00055616,120]
[312738991,1706190771188,-1303.09390466,0.00055616,7]
[312738992,1706190771202,-1106.5124539,0.00055616,120]
[312738993,1706190771217,-553.48563026,0.00055616,120]
[312738994,1706190771233,-582.62341046,0.00055616,120]
[312738995,1706190771248,-658.79333625,0.00055616,120]
[312738996,1706190771262,-903.31,0.00055616,120]
[312738997,1706190771279,-919.91771748,0.00055616,120]
[312738998,1706190771293,-791.98590635,0.00055616,120]
[312738999,1706190771308,-222.85745136,0.00055616,120]
[312739000,1706190771324,-518.51186052,0.00055616,120]
[312739001,1706190771340,-192.28155564,0.00055616,120]
[312739002,1706190771356,-521.98462013,0.00055616,120]
[312739003,1706190771371,-713.30726395,0.00055616,120]
[312739004,1706190771388,-1043.48665176,0.00055616,120]
[312739005,1706190771403,-1210.44588603,0.00055616,120]
[312739006,1706190771418,-235.03370153,0.00055616,120]
[312739007,1706190771433,-550.014488,0.00055616,20]
[312739008,1706190771448,-747.37643673,0.00055616,120]
[312739009,1706190771464,-1473.93176098,0.00055616,120]
[312739010,1706190771480,-1598.21251649,0.00055616,120]
[312739011,1706190771495,-2954.92074013,0.00055616,120]
[312739012,1706190771510,-2335.09,0.00055616,120]
[312739013,1706190771526,-516.69897955,0.00055616,120]
[312739014,1706190771541,-562.27008946,0.00055616,120]
[312739015,1706190771556,-938.84616142,0.00055616,2]
[312739016,1706190771570,-207.0,0.00055616,17]
[312739017,1706190771585,-233.17974244,0.00055665,14]
[312739018,1706190771599,-2215.67,0.00055697,120]
[312739019,1706190771612,-500.0,0.00055708,120]
[312739020,1706190771627,-281.9,0.00055752,120]
[312739021,1706190771647,-2058.77,0.00055753,5]
[312739022,1706190771661,-500.0,0.00055936,120]
[312739023,1706190771676,-413.19437621,0.00055968,55]
[312739024,1706190771690,-200.0,0.00055987,69]
[312739025,1706190771705,-200.0,0.00055987,63]
[312739026,1706190771720,-200.0,0.00055987,48]
[312739027,1706190771735,-200.0,0.00055987,95]
[312739028,1706190771751,-200.0,0.00055987,75]
[312739029,1706190771764,-641.71317915,0.00056,30]
[312739030,1706190771780,-169.0,0.00056,120]
[312739031,1706190771795,-600.0,0.00056,57]
[312739032,1706190771810,-2058.77,0.00056027,5]
[312739033,1706190771978,-200.0,0.00056055,120]
[312739034,1706190771988,-342.54770017,0.00056075,2]
[312739035,1706190771998,-1000.0,0.00056164,120]
[312739036,1706190772008,-1000.0,0.00056164,120]
[312739037,1706190772017,-1000.0,0.00056164,120]
[312739038,1706190772033,-1000.0,0.00056164,120]
[312739039,1706190772042,-1000.0,0.00056164,120]
[312739040,1706190772051,-1000.0,0.00056164,120]
[312739041,1706190772060,-1000.0,0.00056164,120]
[312739042,1706190772070,-1000.0,0.00056164,120]
[312739043,1706190772080,-1000.0,0.00056164,120]
[312739044,1706190772089,-1000.0,0.00056164,120]
[312739045,1706190772099,-1000.0,0.00056164,120]
[312739046,1706190772109,-691.78709825,0.00056164,120]
[312739047,1706190772118,-500.0,0.00056164,120]
[312739048,1706190772128,-4308.0,0.000562,120]
[312739049,1706190772138,-153.40299264,0.00056286,68]
[312739050,1706190772147,-2058.77233983,0.00056301,5]
[312739051,1706190772157,-500.0,0.00056393,120]
[312739052,1706190772166,-1691.243573,0.000564,120]
[312739053,1706190772176,-150.0,0.00056431,120]
[312739054,1706190772186,-169.0,0.000565,120]
[312739055,1706190772197,-200.0,0.00056603,120]
[312739056,1706190772207,-150.0,0.00056615,60]
[312739057,1706190772216,-500.0,0.00056621,120]
[312739058,1706190772226,-607.37885058,0.00056623,14]
[312739059,1706190772236,-152.0,0.000567,120]
[312739060,1706190772246,-666.0,0.00056849,2]
[312739061,1706190772255,-500.0,0.00056849,120]
[312739062,1706190772265,-200.0,0.00056987,75]
[312739063,1706190772274,-200.0,0.00056987,54]
[312739064,1706190772285,-200.0,0.00056987,96]
[312739065,1706190772295,-200.0,0.00056987,76]
[312739066,1706190772305,-1411.73880333,0.00056999,17]
[312739067,1706190772315,-884.07062502,0.00057,58]
[312739068,1706190772325,-212.25794184,0.00057,43]
[312739069,1706190772334,-169.0,0.00057,120]
[312739070,1706190772344,-200.0,0.00057068,120]
[312739071,1706190772354,-500.0,0.00057078,120]
[312739072,1706190772363,-800.0,0.00057135,120]
[312739073,1706190772372,-151.0,0.00057157,2]
[312739074,1706190772386,-297.0,0.0005726,3]
[312739075,1706190772396,-500.0,0.00057306,120]
[312739076,1706190772405,-150.0,0.00057487,120]
[312739077,1706190772415,-271.68663223,0.0005749,42]
[312739078,1706190772424,-169.0,0.000575,120]
[312739079,1706190772433,-2782.78244003,0.000575,120]
[312739080,1706190772443,-4308.46506774,0.000575,120]
[312739081,1706190772452,-585.88256995,0.00057534,120]
[312739082,1706190772462,-165.0,0.00057534,120]
[312739083,1706190772471,-150.0,0.00057615,60]
[312739084,1706190772480,-233.17974244,0.00057724,14]
[312739085,1706190772490,-200.0,0.00057753,120]
[312739086,1706190772500,-152.0,0.000578,120]
[312739087,1706190772510,-1000.0,0.000578,120]
[312739088,1706190772519,-200.0,0.00057987,77]
[312739089,1706190772528,-200.0,0.00057987,97]
[312739090,1706190772538,-200.0,0.00057987,77]
[312739091,1706190772548,-153.40299264,0.00057988,74]
[312739092,1706190772557,-1792.703609,0.00058,80]
[312739093,1706190772567,-300.0,0.00058,90]
[312739094,1706190772577,-169.0,0.00058,120]
[312739095,1706190772587,-200.0,0.00058082,120]
[312739096,1706190772597,-302.0,0.00058117,4]
[312739097,1706190772607,-169.0,0.000585,120]
[312739098,1706190772617,-150.0,0.00058543,120]
[312739099,1706190772629,-413.19437621,0.00058612,59]
[312739100,1706190772638,-150.0,0.00058615,60]
[312739101,1706190772648,-1411.73880333,0.0005888,19]
[312739102,1706190772657,-666.0,0.00058904,2]
[312739103,1706190772667,-200.0,0.00058904,120]
[312739104,1706190772677,-1000.0,0.0005896,120]
[312739105,1706190772687,-200.0,0.00058987,98]
[312739106,1706190772696,-200.0,0.00058987,78]
[312739107,1706190772706,-200.0,0.00058987,58]
[312739108,1706190772716,-10537.0,0.0005899,2]
[312739109,1706190772725,-106139.09841193,0.00059,2]
[312739110,1706190772734,-200.0,0.00059,45]
[312739111,1706190772744,-169.0,0.00059,120]
[312739112,1706190772754,-202.0,0.00059,20]
[312739113,1706190772763,-607.37885058,0.00059092,14]
[312739114,1706190772773,-604.0,0.00059094,7]
[312739115,1706190772783,-200.0,0.00059096,120]
[312739116,1706190772792,-169.0,0.000595,120]
[312739117,1706190772802,-150.0,0.00059599,120]
[312739118,1706190772812,-153.40299264,0.0005969,81]
[312739119,1706190772823,-599.99999901,0.000597,30]
[312739120,1706190772833,-233.17974244,0.00059783,14]
[312739121,1706190772842,-150.0,0.0005985,120]
[312739122,1706190772851,-150.0,0.0005985,120]
[312739123,1706190772861,-152.22002784,0.0005985,120]
[312739124,1706190772871,-151.41572837,0.0005985,120]
[312739125,1706190772885,-150.0,0.0005985,120]
[312739126,1706190772895,-153.10347597,0.0005985,120]
[312739127,1706190772905,-152.73336286,0.0005985,120]
[312739128,1706190772915,-157.53631418,0.0005985,120]
[312739129,1706190772925,-155.45187413,0.0005985,120]
[312739130,1706190772936,-150.0,0.0005985,120]
[312739131,1706190772945,-200.0,0.00059987,99]
[312739132,1706190772955,-200.0,0.00059987,79]
[312739133,1706190772965,-200.0,0.00059987,59]
[312739134,1706190772974,-252.32303366,0.00059999,120]
[312739135,1706190772984,-251.7720912,0.00059999,120]
[312739136,1706190772994,-411.22774895,0.00059999,120]
[312739137,1706190773004,-176.24046384,0.00059999,120]
[312739138,1706190773013,-150.0,0.00059999,42]
[312739139,1706190773023,-2701.58327501,0.0006,120]
[312739140,1706190773035,-157.24489835,0.0006,60]
[312739141,1706190773049,-1954.83548843,0.0006,120]
[312739142,1706190773058,-10112.64135151,0.0006,120]
[312739143,1706190773067,-280.15637006,0.0006,30]
[312739144,1706190773078,-21277.90435327,0.0006,60]
[312739145,1706190773088,-6210.56662192,0.0006,120]
[312739146,1706190773097,-500000.0,0.0006,120]
[312739147,1706190773107,-1034.1450577,0.0006,90]
[312739148,1706190773118,-178.81,0.0006,2]
[312739149,1706190773129,-2498.40166247,0.0006,90]
[312739150,1706190773138,-2000.0,0.0006,120]
[312739151,1706190773147,-403872.86,0.0006,120]
[312739152,1706190773157,-169.0,0.0006,120]
[312739153,1706190773167,-500.0,0.0006,120]
[312739154,1706190773176,-500.0,0.0006,120]
[312739155,1706190773186,-500.0,0.0006,120]
[312739156,1706190773195,-500.0,0.0006,120]
[312739157,1706190773205,-500.0,0.0006,120]
[312739158,1706190773215,-500.0,0.0006,120]
[312739159,1706190773226,-500.0,0.0006,120]
[312739160,1706190773237,-500.0,0.0006,120]
[312739161,1706190773247,-10860.0,0.0006,120]
[312739162,1706190773257,-500.0,0.0006,120]
[312739163,1706190773267,-200.0,0.00060055,120]
[312739164,1706190773277,-200.0,0.0006011,120]
[312739165,1706190773286,-170.26,0.00060155,120]
[312739166,1706190773296,-161.83139284,0.00060247,2]
[312739167,1706190773306,-150.0,0.00060249,120]
[312739168,1706190773322,-500000.0,0.0006025,120]
[312739169,1706190773331,-150.0,0.000603,2]
[312739170,1706190773340,-165.0,0.00060411,120]
[312739171,1706190773350,-161.83139284,0.00060497,2]
[312739172,1706190773359,-3763.82234764,0.000605,120]
[312739173,1706190773473,-891.99166134,0.000605,120]
[312739174,1706190773484,-6229.76109355,0.000605,120]
[312739175,1706190773658,-500.99467117,0.00049315,31]
[312739176,1706190773667,-331.34668882,0.00049315,31]
[312739177,1706190773679,-183.97810608,0.00049315,31]
[312739178,1706190773688,-567.68038303,0.00049315,31]
[312739179,1706190773698,-435.3894449,0.00051232,31]
[312739180,1706190773710,-64.6105551,0.00051232,31]
[312739181,1706190773719,-500.0,0.00051506,31]
[312739182,1706190773730,-500.0,0.0005178,31]
[312739183,1706190773740,-500.0,0.00052054,31]
[312739184,1706190773749,-500.0,0.00052328,31]
[312739185,1706190773759,-500.0,0.00052602,31]
[312739186,1706190773769,-619.45,0.00053972,31]
[312739187,1706190773779,-619.45,0.00054246,31]
[312739188,1706190773789,-66.78711212,0.0005452,120]
[312739189,1706190773805,-552.66288788,0.0005452,120]
[312739190,1706190773815,-619.45,0.00054794,120]
[312739191,1706190773825,-619.45,0.00055068,120]
[312739192,1706190773834,-1401.29213926,0.0006,120]
[312739193,1706190773843,-3744.33222955,0.000605,120]
[312739194,1706190773855,-7642.88519415,0.000605,120]
[312739195,1706190773866,-49014.21429355,0.000605,120]
[312739196,1706190773878,-21398.09054124,0.000605,120]
[312739197,1706190773891,-407314.90263898,0.000605,120]
[312739198,1706190773901,-169.0,0.000605,120]
[312739199,1706190773911,-150.0,0.00060681,120]
[312739200,1706190773920,-800.0,0.00060728,120]
[312739201,1706190773930,-150.0,0.00060749,120]
[312739202,1706190773939,-500000.0,0.0006075,120]
[312739203,1706190773949,-1411.73880333,0.0006076,20]
[312739204,1706190773958,-666.0,0.00060958,120]
[312739205,1706190773967,-200.0,0.00060987,106]
[312739206,1706190773976,-200.0,0.00060987,100]
[312739207,1706190773986,-200.0,0.00060987,60]
[312739208,1706190773998,-161.83139284,0.00060997,2]
[312739209,1706190774008,-155.0,0.00061,7]
[312739210,1706190774017,-155974.23777645,0.00061,120]
[312739211,1706190774030,-8432.52652087,0.00061,120]
[312739212,1706190774043,-7183.07450555,0.00061,120]
[312739213,1706190774056,-354.72076362,0.00061,120]
[312739214,1706190774069,-7919.59260362,0.00061,120]
[312739215,1706190774081,-2506.29846574,0.00061,120]
[312739216,1706190774098,-500.0,0.00052876,31]
[312739217,1706190774108,-28062.22626119,0.00061,120]
[312739218,1706190774119,-15564.47995162,0.00061,120]
[312739219,1706190774132,-2569.87493814,0.00061,120]
[312739220,1706190774143,-339.66350361,0.00061,120]
[312739221,1706190774156,-783.74771048,0.00061,120]
[312739222,1706190774239,-9269.19476867,0.00061,120]
[312739223,1706190777548,253.91095065,0.00020699,2]
[312739234,1706190821149,-222.80459909,0.00022768,4]
[312739235,1706190821173,-10153.66468834,0.00022769,2]
[312739236,1706190821195,-227.76706902,0.000229,2]
[312739237,1706190821215,-332.33710044,0.000229,2]
[312739238,1706190821237,-18002.68666576,0.000229,2]
[312739239,1706190821258,-305.67942958,0.00022998,2]
[312739240,1706190821280,-446.35904613,0.00022998,2]
[312739241,1706190821303,-371.82850612,0.00022998,2]
[312739242,1706190821326,-947.26706972,0.00022998,2]
[312739243,1706190821350,-156.15504631,0.00022998,2]
[312739244,1706190821372,-199.93742137,0.00022998,2]
[312739245,1706190821395,-299.70010166,0.00022998,2]
[312739246,1706190821633,-156.89259705,0.00022998,2]
[312739247,1706190821656,-172.088388,0.00022999,2]
[312739248,1706190821681,-777.68,0.00022999,2]
[312739249,1706190821704,-17227.15227141,0.00022999,2]
[312739253,1706190850864,-1383.5679409,0.000229,6]
[312739254,1706190850884,-416.15407698,0.000229,2]
[312739255,1706190850903,-191.35819916,0.000229,4]
[312739256,1706190850924,-393.43491174,0.000229,2]
[312739257,1706190850945,-821.82095652,0.000229,2]
[312739258,1706190850966,-151.60253565,0.000229,2]
[312739259,1706190850986,-20828.06137905,0.00022999,2]
[312739265,1706190883728,-420.3224339,0.00022077,2]
[312739266,1706190883748,-247.32726579,0.00022767,2]
[312739267,1706190883771,-155.45316164,0.00022899,2]
[312739268,1706190883792,-155.45316162,0.000229,2]
[312739269,1706190883813,-436.44885232,0.000229,2]
[312739270,1706190883835,-856.36925042,0.000229,2]
[312739271,1706190883855,-155.45316162,0.000229,2]
[312739272,1706190883876,-464.83,0.00022979,2]
[312739273,1706190883896,-419.96246939,0.00022986,2]
[312739274,1706190883916,-984.24808758,0.00022997,2]
[312739275,1706190883937,-2949.83197426,0.00022997,2]
[312739276,1706190883959,-2598.67036357,0.00022997,2]
[312739277,1706190883980,-1402.01427235,0.00022997,2]
[312739278,1706190884000,-4640.64426459,0.00022997,2]
[312739279,1706190884025,-367.07550151,0.00022998,2]
[312739280,1706190884045,-1255.57609338,0.00022998,2]
[312739281,1706190884069,-124645.31968606,0.00022999,2]
[312739282,1706190896746,-2621.6757205,0.00022998,2]
[312739283,1706190896768,-47378.3242795,0.00022999,2]
[312739286,1706190960324,-223.07409071,0.00023,20]
[312739289,1706191104053,-1225.0,0.00022988,2]
[312739298,1706191232944,-1262.37262765,0.0002298,2]
[312739299,1706191232970,-660.92254569,0.0002298,2]
[312739300,1706191232994,-3000.0,0.00022981,2]
[312739301,1706191233020,-2023.31673073,0.00022982,2]
[312739302,1706191233045,-160.88730639,0.00022982,2]
[312739303,1706191233070,-16785.71714725,0.00022982,2]
[312739304,1706191233095,-300.0,0.00022982,2]
[312739305,1706191233120,-3048.07320636,0.00022983,2]
[312739306,1706191233144,-6447.51276407,0.00022983,2]
[312739307,1706191233170,-129547.91325259,0.00022984,2]
[312739308,1706191233198,-9563.84898739,0.00022987,2]
[312739309,1706191233223,-288.669932,0.00022989,2]
[312739310,1706191233248,-246.71420662,0.0002299,2]
[312739311,1706191233274,-915699.82551107,0.0002299,2]
[312739312,1706191233299,-660.92254569,0.0002299,2]
[312739313,1706191233324,-660.92254569,0.0002299,2]
[312739314,1706191233349,-156.51631473,0.00022994,2]
[312739315,1706191233373,-1291.36772603,0.00022994,2]
[312739316,1706191233397,-164.8499711,0.00022994,2]
[312739317,1706191233422,-155.24623089,0.00022994,2]
[312739318,1706191233447,-1814.00128451,0.00022994,2]
[312739319,1706191233634,-585.16577305,0.00022994,2]
[312739320,1706191233659,-4251.09923915,0.00022994,2]
[312739321,1706191233684,-158.98648489,0.00022994,2]
[312739322,1706191233710,-1257.43862542,0.00022994,2]
[312739323,1706191233735,-779.51108395,0.00022994,2]
[312739324,1706191233765,-199.70774657,0.00022994,2]
[312739325,1706191233790,-4276.78305022,0.00022994,2]
[312739326,1706191233816,-921.72041639,0.00022994,2]
[312739327,1706191233840,-263.67638283,0.00022994,2]
[312739328,1706191233866,-156.08016594,0.00022994,2]
[312739329,1706191233891,-20542.82395153,0.00022995,2]
[312739330,1706191233916,-4632.53528402,0.00022997,2]
[312739331,1706191233942,-155.0,0.00022997,2]
[312739332,1706191233968,-90457.12982228,0.00022997,2]
[312739333,1706191233993,-318.71536209,0.00022997,2]
[312739334,1706191234017,-2865.17581434,0.00022997,2]
[312739335,1706191234046,-4721.25260477,0.00022997,2]
[312739336,1706191234071,-295.78388584,0.00022997,2]
[312739337,1706191234098,-262.38403337,0.00022997,2]
[312739338,1706191234124,-763.73339301,0.00022997,2]
[312739339,1706191234150,-247.78428207,0.00022997,5]
[312739340,1706191234175,-203.12390135,0.00022997,2]
[312739341,1706191234202,-266.658261,0.00022997,2]
[312739342,1706191234228,-216.3695052,0.00022997,2]
[312739343,1706191234252,-246.83985967,0.00022997,2]
[312739344,1706191234279,-155.0,0.00022998,2]
[312739345,1706191234303,-488.8095824,0.00022998,2]
[312739346,1706191234327,-156.64507803,0.00022998,2]
[312739347,1706191234353,-345.36815407,0.00022998,2]
[312739348,1706191234377,-155.99480828,0.00022998,2]
[312739349,1706191234400,-2043.23372162,0.00022999,2]
[312739350,1706191234424,-981.36672622,0.00022999,2]
[312739351,1706191234449,-500.0,0.00022999,2]
[312739352,1706191234473,-500.0,0.00022999,2]
[312739353,1706191234498,-500.0,0.00022999,2]
[312739354,1706191234522,-436.53719805,0.00022999,2]
[312739355,1706191234547,-212.97525495,0.00022999,2]
[312739356,1706191234570,-158.5121625,0.00022999,2]
[312739357,1706191234595,-500.0,0.00022999,2]
[312739358,1706191234619,-500.0,0.00022999,2]
[312739359,1706191234642,-648.36625884,0.00022999,2]
[312739360,1706191234666,-502.42725245,0.00022999,2]
[312739361,1706191234692,-500.0,0.00022999,2]
[312739362,1706191234717,-550.69141672,0.00022999,2]
[312739363,1706191234743,-500.0,0.00022999,2]
[312739364,1706191234770,-500.0,0.00022999,2]
[312739365,1706191234795,-500.0,0.00022999,2]
[312739366,1706191234821,-500.0,0.00022999,2]
[312739367,1706191234847,-500.0,0.00022999,2]
[312739368,1706191234873,-500.0,0.00022999,2]
[312739369,1706191234898,-500.0,0.00022999,2]
[312739370,1706191234924,-500.0,0.00022999,2]
[312739371,1706191234952,-260.00445861,0.00022999,2]
[312739372,1706191234978,-500.0,0.00022999,2]
[312739373,1706191235003,-500.0,0.00022999,2]
[312739374,1706191235029,-500.0,0.00022999,2]
[312739375,1706191235056,-602.08678727,0.00022999,2]